[Event "1000GM Schev-C-A February 2024"]
[Site "Santa Clara"]
[Date "2024.02.24"]
[Round "2.1"]
[White "Delgado Ramirez, Neuris"]
[Black "Tang, Dylan"]
[Result "1/2-1/2"]
[ECO "C01"]
[WhiteElo "2517"]
[BlackElo "2206"]
[Annotator "TA"]
[PlyCount "130"]
[EventDate "2024.02.13"]
[EventType "schev"]
[EventCountry "USA"]
[SourceTitle "playchess.com"]
[Source "ChessBase"]
[SourceQuality "1"]
[TimeControl "5400+30"]

{[%evp 19,130,0,22,21,24,6,6,12,7,0,14,-5,33,6,17,21,25,0,0,0,0,0,0,0,0,-4,-2,-8,0,-17,-5,-46,-36,-57,-2,0,0,0,0,0,0,0,33,0,0,0,0,0,0,-8,0,0,0,0,0,0,0,0,0,0,0,0,0,0,0,0,0,0,0,0,0,0,0,-8,0,0,0,0,20,20,21,20,20,27,33,24,23,0,0,0,0,0,8,0,0,0,0,0,8,8,8,8,8,8,8,8,8,8,8,8,8,8,8]} 1. c4 {[%emt 0:02:48]} e6 {[%emt 0:00:21]} 2. e4 {[%emt 0:00:06]} d5 {[%emt 0:01:10]} 3. exd5 {[%emt 0:00:07]} exd5 {[%emt 0:00:04]} 4. d4 {[%emt 0:00:04]} Nf6 {[%emt 0:01:18]} 5. Nc3 {[%emt 0:01:54]} Be7 {[%emt 0:02:00]} 6. cxd5 {[%emt 0:03:12]} Nbd7 {[%emt 0:04:04] C01: French: Exchange Variation.} 7. Nf3 {[%emt 0:05:14]} Nb6 {[%emt 0:02:00]} 8. Bb5+ {[%emt 0:00:35]} Bd7 {[%emt 0:01:17]} 9. Bd3 {[%emt 0:00:04]} Nbxd5 {[%emt 0:05:38]} 10. O-O {[%emt 0:00:17]} Bg4 {[%emt 0:03:11]} 11. Re1 {[%emt 0:03:56]} O-O {[%emt 0:01:49]} 12. Bg5 $146 {[%emt 0:00:40]} ({Predecessor:} 12. h3 Bh5 13. Bg5 Re8 14. Re5 Bg6 15. Bxg6 hxg6 16. Qb3 Nxc3 17. bxc3 b6 18. Qa4 Bd6 19. Ree1 Qd7 {½-½ Miezis,N (2518)-Ovsejevitsch,S (2594) Dresden ZMD op 2010 (7)}) 12... h6 {[%emt 0:09:08]} 13. Bh4 {[%emt 0:01:57]} Re8 {[%emt 0:04:06]} 14. h3 {[%emt 0:03:52]} Be6 {[%emt 0:10:30]} 15. Ne5 {[%emt 0:02:43]} Nf4 {[%emt 0:02:36]} 16. Bf1 {[%emt 0:01:18]} N6d5 {[%emt 0:01:14]} 17. Bg3 {[%emt 0:03:18]} Bd6 {[%emt 0:13:26]} 18. Qf3 {[%emt 0:03:55]} Qf6 $1 {[%emt 0:03:42]} 19. Kh2 {[%emt 0:03:18]} Nxc3 {[%emt 0:02:30]} 20. bxc3 {[%emt 0:00:44]} Nd5 {[%emt 0:00:11]} 21. c4 {[%emt 0:02:15]} Qxf3 {[%emt 0:01:05]} 22. Nxf3 {[%emt 0:01:36]} Bxg3+ {[%emt 0:01:17]} 23. fxg3 {[%emt 0:04:05]} Nb6 {[%emt 0:02:37]} 24. c5 {[%emt 0:09:28]} Nd7 {[%emt 0:02:06]} 25. Nd2 {[%emt 0:03:21]} Bd5 {[%emt 0:02:41]} 26. Bb5 {[%emt 0:00:16]} c6 {[%emt 0:00:36]} (26... Rxe1 $15 27. Rxe1 Nf8) 27. Bc4 $11 {[%emt 0:00:05]} Bxc4 {[%emt 0:02:09]} 28. Nxc4 {[%emt 0:00:11]} b6 {[%emt 0:00:03]} 29. Nd6 {[%emt 0:01:51]} Rxe1 {[%emt 0:00:20]} 30. Rxe1 {[%emt 0:00:04]} Kf8 {[%emt 0:00:54]} 31. cxb6 {[%emt 0:00:51]} axb6 {[%emt 0:00:47]} 32. Rc1 {[%emt 0:00:42]} c5 {[%emt 0:00:51]} 33. dxc5 {[%emt 0:00:26]} Nxc5 {[%emt 0:00:06]} (33... Rxa2 $2 34. c6 g6 35. c7 $18 (35. cxd7 Ke7 $18)) 34. Rc2 {[%emt 0:00:29]} Ke7 {[%emt 0:21:43]} 35. Nf5+ {[%emt 0:00:22]} Kf6 {[%emt 0:00:00]} 36. g4 {[%emt 0:00:08]} h5 {[%emt 0:00:00]} 37. Ne3 {[%emt 0:00:04]} Kg6 {[%emt 0:00:00]} 38. gxh5+ {[%emt 0:03:10]} Kxh5 {[%emt 0:00:00]} 39. Nc4 {[%emt 0:00:04]} Na4 {[%emt 0:00:00]} 40. g4+ {[%emt 0:02:50]} Kh6 {[%emt 0:00:00]} 41. Nd6 {[%emt 0:00:20]} Ra7 {[%emt 0:00:00]} 42. h4 {[%emt 0:00:27]} Nc5 {[%emt 0:04:00]} 43. Rf2 {[%emt 0:00:24]} f6 {[%emt 0:00:00]} 44. Re2 {[%emt 0:00:39]} Nd3 {[%emt 0:01:00]} 45. Kg3 {[%emt 0:05:21]} Nc1 {[%emt 0:00:00]} 46. Re8 {[%emt 0:03:12]} Kh7 {[%emt 0:00:00]} 47. h5 {[%emt 0:00:17]} Ra3+ {[%emt 0:00:00]} 48. Kh4 {[%emt 0:00:44]} g5+ {[%emt 0:00:00]} 49. hxg6+ {[%emt 0:00:19]} Kxg6 {[%emt 0:00:00]} 50. Rg8+ {[%emt 0:02:36]} Kh7 {[%emt 0:00:00]} 51. Rc8 {[%emt 0:00:12]} Ne2 {[%emt 0:03:30]} 52. Rc7+ {[%emt 0:00:46]} Kg8 {[%emt 0:00:00]} ({Inferior is} 52... Kg6 53. Nf5) 53. g5 {[%emt 0:06:16]} fxg5+ {[%emt 0:00:00]} 54. Kxg5 {[%emt 0:00:07]} Rg3+ {[%emt 0:00:00]} 55. Kf5 {[%emt 0:00:43]} Rf3+ {[%emt 0:00:00]} 56. Ke5 {[%emt 0:01:09]} Re3+ {[%emt 0:00:00]} 57. Kd5 {[%emt 0:02:35]} Nf4+ {[%emt 0:00:00]} 58. Kc6 {[%emt 0:00:59]} Rc3+ {[%emt 0:00:00]} 59. Kb7 {[%emt 0:00:10]} (59. Kxb6 $2 {perishes.} Nd5+ 60. Ka5 Rxc7 $19 (60... Nxc7 $2 61. a4 $19)) 59... Rxc7+ {[%emt 0:00:00]} 60. Kxc7 {[%emt 0:00:28]} Nd5+ {[%emt 0:00:00]} 61. Kb7 {[%emt 0:02:34]} Nc3 {[%emt 0:00:00]} 62. a3 {[%emt 0:18:52]} Nb1 {[%emt 0:00:00]} 63. Nb5 {[%emt 0:00:00]} Nxa3 {[%emt 0:00:00]} 64. Nxa3 {[%emt 0:00:00]} b5 {[%emt 0:00:00]} 65. Nxb5 {[%emt 0:00:00]} Kh8 {[%emt 0:07:00]} 1/2-1/2

[Event "1000GM Schev-C-A February 2024"]
[Site "Santa Clara"]
[Date "2024.02.24"]
[Round "2.2"]
[White "Arenas, David"]
[Black "Min, Ryan"]
[Result "1-0"]
[ECO "A26"]
[WhiteElo "2406"]
[BlackElo "2063"]
[Annotator "TA"]
[PlyCount "93"]
[EventDate "2024.02.13"]
[EventType "schev"]
[EventCountry "USA"]
[SourceTitle "playchess.com"]
[Source "ChessBase"]
[SourceQuality "1"]
[TimeControl "5400+30"]

{[%evp 22,92,30,26,17,15,50,68,46,55,50,51,61,50,64,41,69,49,63,57,140,165,213,180,233,77,66,68,68,68,68,69,88,83,98,100,97,99,153,158,159,161,155,155,158,163,170,170,170,170,193,193,208,199,392,311,397,397,480,383,375,373,324,296,29990,29991,29991,29992,29994,29995,29996,29997,29999]} 1. c4 {[%emt 0:02:56]} Nf6 {[%emt 0:00:07]} 2. Nc3 {[%emt 0:00:32]} g6 {[%emt 0:00:10]} 3. g3 {[%emt 0:00:11]} Bg7 {[%emt 0:00:09]} 4. Bg2 {[%emt 0:00:08]} O-O {[%emt 0:00:18]} 5. Nf3 {[%emt 0:00:29]} d6 {[%emt 0:00:08]} 6. O-O {[%emt 0:00:11]} e5 {[%emt 0:00:48]} 7. d3 {[%emt 0:00:16]} Nc6 {[%emt 0:01:09]} 8. Rb1 {[%emt 0:00:33]} a5 {[%emt 0:05:22]} 9. a3 {[%emt 0:00:31][%cal Ba2a3,Ba3b4,Bb4b5][%mdl 32]} h6 {[%emt 0:05:30]} 10. b4 {[%emt 0:02:42]} axb4 {[%emt 0:00:12]} 11. axb4 {[%emt 0:00:02]} Be6 {[%emt 0:00:21]} 12. Nd2 {[%emt 0:05:44]} Qc8 {[%emt 0:05:57]} 13. Nd5 {[%emt 0:04:11]} Re8 {[%emt 0:07:47]} 14. b5 {[%emt 0:00:51]} Ne7 {[%emt 0:00:18] White is slightly better.} 15. Nxf6+ {[%emt 0:12:07]} Bxf6 {[%emt 0:00:05]} 16. b6 {[%emt 0:00:09] aiming for bxc7.} d5 {[%emt 0:06:58]} 17. bxc7 {[%emt 0:01:03]} Qxc7 {[%emt 0:00:35]} 18. Qb3 {[%emt 0:00:17][%csl LRb7,LRd5]} dxc4 {[%emt 0:10:04]} 19. Nxc4 {[%emt 0:07:18]} (19. Qxb7 Qxb7 20. Bxb7 cxd3 $18) 19... Rab8 {[%emt 0:08:31] Hoping for ...b5.} 20. Qb6 {[%emt 0:01:16]} (20. Bxb7 Bd5 21. Bxd5 Rxb3 22. Bxf7+ Kxf7 $15) (20. Bxh6 $2 b5 21. Bd2 bxc4 $19) 20... Qd7 {[%emt 0:12:17]} (20... Qxb6 $14 21. Rxb6 Bg7) 21. Nd6 $16 {[%emt 0:06:32] White is much more active.} Rf8 {[%emt 0:07:10]} (21... Red8 {is a better defense.}) 22. Ne4 {[%emt 0:03:41]} (22. Bxb7 $6 Bh3) (22. Nxb7 $6 Nf5 $16) 22... Nd5 {[%emt 0:03:58] [#]} (22... Bg7 $142 23. Nc5 Qc8 24. Nxe6 (24. Bxb7 Rxb7 25. Nxb7 Nd5 $14) 24... Qxe6 25. Qxe6 (25. Bxb7 Qxb6 26. Rxb6 Rfd8 $16) 25... fxe6 26. Bxb7 Nf5) 23. Bxh6 $2 {[%emt 0:01:24]} Bg7 {[%emt 0:01:19]} 24. Qa5 {[%emt 0:01:55] Black must now prevent Bxg7.} ({Don't play} 24. Bxg7 Nxb6 25. Bxf8 Kxf8 $11) 24... Bxh6 {[%emt 0:07:33] [#]} 25. Qxd5 $1 {[%emt 0:00:09]} Qxd5 {[%emt 0:02:19]} 26. Nf6+ {[%emt 0:00:01]} Kg7 {[%emt 0:00:17] White leaves nothing to chance now.} 27. Nxd5 {[%emt 0:00:03]} Bxd5 {[%emt 0:00:51]} 28. Bxd5 {[%emt 0:00:01]} b5 {[%emt 0:01:06]} 29. Rb2 {[%emt 0:00:02]} Rfc8 {[%emt 0:00:37]} (29... Rfd8 $142 30. Bb3 Bg5) 30. Rfb1 {[%emt 0:00:53]} Rc1+ {[%emt 0:00:59] [#]} 31. Rxc1 $1 {[%emt 0:00:05]} Bxc1 {[%emt 0:00:07][%mdl 4096] Endgame. KRB-KRB} 32. Rc2 {[%emt 0:00:02]} Ba3 {[%emt 0:02:00]} 33. Rc7 {[%emt 0:00:24]} Rf8 {[%emt 0:00:10]} 34. Rb7 {[%emt 0:00:27]} b4 {[%emt 0:00:06]} 35. h4 {[%emt 0:00:39]} Kf6 {[%emt 0:02:02]} 36. Kg2 {[%emt 0:00:31]} Kg7 {[%emt 0:02:08]} 37. g4 {[%emt 0:01:19][%cal Bg3g4,Bg4g5][%mdl 32]} Kf6 $2 {[%emt 0:00:43]} (37... Bc1 {was necessary.} 38. Rxb4 Rh8) 38. Kg3 {[%emt 0:02:27]} Kg7 {[%emt 0:02:28]} 39. g5 {[%emt 0:00:14]} Kg8 {[%emt 0:00:10]} 40. e3 {[%emt 0:03:26]} Kg7 {[%emt 0:00:19]} 41. Kf3 {[%emt 0:01:12]} Kh8 {[%emt 0:00:15]} 42. Ke4 {[%emt 0:02:52]} (42. Bxf7 Kg7 43. Rb6 Rxf7+ 44. Ke4 Rxf2 45. Kxe5 Rf3 46. Rb7+ Rf7 $19) 42... f6 {[%emt 0:01:01] [#]} (42... Kg7 $18 43. Kxe5 b3 44. Bxb3 (44. Rxb3 Re8+ 45. Kf4 Rd8 $18) 44... Re8+ 45. Kf4 Re7) 43. h5 $1 {[%emt 0:00:52][%mdl 512] White mates.} Bb2 {[%emt 0:02:01]} (43... f5+ 44. Kxe5) 44. d4 {[%emt 0:03:15]} exd4 {[%emt 0:00:19]} 45. hxg6 {[%emt 0:00:04][%csl Gg6][%cal Rb7h7]} ({Not} 45. Rxb4 Ba3 46. Rb7 (46. Rxd4 fxg5 47. Ra4 Bc5 $16) 46... Re8+ 47. Kxd4 fxg5 $18) 45... f5+ {[%emt 0:00:15]} 46. Kd3 {[%emt 0:00:11][%csl Gg6][%cal Rb7h7]} dxe3 {[%emt 0:00:22]} 47. Rh7# {[%emt 0:00:08] Weighted Error Value: White=0.14 (very precise) /Black=0.43.  Mistake:       	White=1     	Black=6      Inaccurate:     	---       	Black=1      OK:         	White=14    	Black=6      Best:        	White=2     	Black=3      Strong:       	White=1     	---        Brilliant:      	White=2     	---} 1-0

[Event "1000GM Schev-C-A February 2024"]
[Site "Santa Clara"]
[Date "2024.02.24"]
[Round "2.3"]
[White "Jimenez Garcia, Emmanuel"]
[Black "Atwell, Rose"]
[Result "1-0"]
[ECO "A07"]
[WhiteElo "2394"]
[BlackElo "2104"]
[Annotator "RC"]
[PlyCount "123"]
[EventDate "2024.02.13"]
[EventType "schev"]
[EventCountry "USA"]
[SourceTitle "playchess.com"]
[Source "ChessBase"]
[SourceQuality "1"]
[TimeControl "5400+30"]

1. Nf3 {[%emt 0:00:15]} d5 {[%emt 0:00:04]} 2. g3 {[%emt 0:00:04]} Nf6 {[%emt 0:00:05]} 3. Bg2 {[%emt 0:00:05]} c6 {[%emt 0:00:04]} 4. O-O {[%emt 0:00:11]} Bg4 {[%emt 0:00:10]} 5. h3 {[%emt 0:01:47]} Bh5 {[%emt 0:01:31]} 6. d3 {[%emt 0:06:09]} Nbd7 {[%emt 0:01:34]} 7. Nbd2 {[%emt 0:03:03]} e5 {[%emt 0:03:07]} 8. e4 {[%emt 0:02:40]} dxe4 {[%emt 0:04:21]} 9. dxe4 {[%emt 0:00:02]} Be7 {[%emt 0:03:46]} 10. Nc4 {[%emt 0:03:42]} Qc7 {[%emt 0:03:08]} 11. Qe1 {[%emt 0:02:43]} O-O {[%emt 0:04:02]} 12. Nh4 {[%emt 0:01:45]} Rfe8 {[%emt 0:05:49]} 13. Nf5 {[%emt 0:02:27]} Bf8 {[%emt 0:02:38]} 14. Be3 {[%emt 0:04:29]} Nc5 {[%emt 0:06:59]} 15. f3 {[%emt 0:00:21]} b5 {[%emt 0:02:36]} 16. Qa5 {[%emt 0:02:00]} Qb8 {[%emt 0:04:24]} 17. Nd2 {[%emt 0:04:29]} Nfd7 {[%emt 0:03:13]} 18. Nb3 {[%emt 0:02:03]} f6 {[%emt 0:04:51]} 19. Rfd1 {[%emt 0:01:54]} Bf7 {[%emt 0:08:22]} 20. Qc3 {[%emt 0:15:08]} Nxb3 {[%emt 0:02:55]} 21. axb3 {[%emt 0:00:19]} Qc7 {[%emt 0:00:55]} 22. Ra6 {[%emt 0:05:58]} Rec8 {[%emt 0:04:16]} 23. Rda1 {[%emt 0:00:31]} b4 {[%emt 0:02:02]} 24. Qe1 {[%emt 0:02:09]} c5 {[%emt 0:02:23]} 25. Bf1 {[%emt 0:06:49]} Nb6 {[%emt 0:02:10]} 26. Bf2 {[%emt 0:05:19]} Rd8 {[%emt 0:05:20]} 27. Ne3 {[%emt 0:00:16]} Rd7 {[%emt 0:00:32]} 28. Bb5 {[%emt 0:00:58]} Rd6 {[%emt 0:01:28]} 29. Nf5 {[%emt 0:04:55]} Rdd8 {[%emt 0:00:26]} 30. Ne3 {[%emt 0:02:49]} Be6 {[%emt 0:00:59]} 31. Bc4 {[%emt 0:00:56]} Nxc4 {[%emt 0:01:21]} 32. bxc4 {[%emt 0:00:12]} Qf7 {[%emt 0:01:39]} 33. b3 {[%emt 0:02:27]} f5 {[%emt 0:02:41]} 34. Rxe6 {[%emt 0:03:36]} Qxe6 {[%emt 0:00:06]} 35. exf5 {[%emt 0:00:15]} Qc6 {[%emt 0:03:14]} 36. Nd5 {[%emt 0:02:53]} Rxd5 {[%emt 0:01:12]} 37. cxd5 {[%emt 0:00:07]} Qxd5 {[%emt 0:00:03]} 38. Kg2 {[%emt 0:00:24]} Re8 {[%emt 0:01:44]} 39. Qe4 {[%emt 0:02:20]} Rd8 {[%emt 0:00:48]} 40. Qxd5+ {[%emt 0:01:49]} Rxd5 {[%emt 0:00:03]} 41. Be3 {[%emt 0:00:06]} Rd7 {[%emt 0:01:37]} 42. g4 {[%emt 0:01:13]} Kf7 {[%emt 0:04:27]} 43. g5 {[%emt 0:01:28]} Be7 {[%emt 0:00:54]} 44. h4 {[%emt 0:00:22]} Bd6 {[%emt 0:01:50]} 45. Kh3 {[%emt 0:01:45]} Ke7 {[%emt 0:00:34]} 46. Kg4 {[%emt 0:00:34]} Rc7 {[%emt 0:00:51]} 47. h5 {[%emt 0:00:59]} Kf8 {[%emt 0:06:46]} 48. Ra6 {[%emt 0:00:19]} Be7 {[%emt 0:00:00]} 49. h6 {[%emt 0:01:15]} gxh6 {[%emt 0:00:00]} 50. Rxh6 {[%emt 0:00:03]} Kg8 {[%emt 0:00:00]} 51. Re6 {[%emt 0:01:13]} Kf7 {[%emt 0:00:00]} 52. Rxe5 {[%emt 0:00:47]} c4 {[%emt 0:00:00]} 53. f6 {[%emt 0:00:16]} Bd6 {[%emt 0:00:00]} 54. Ra5 {[%emt 0:00:20]} cxb3 {[%emt 0:00:00]} 55. cxb3 {[%emt 0:00:02]} Rc3 {[%emt 0:00:00]} 56. Rxa7+ {[%emt 0:00:13]} Kg8 {[%emt 0:00:00]} 57. f7+ {[%emt 0:04:09]} Kf8 {[%emt 0:00:00]} 58. g6 {[%emt 0:00:32]} Rxe3 {[%emt 0:00:13]} 59. Ra8+ {[%emt 0:00:37]} Kg7 {[%emt 0:00:11]} 60. Rg8+ {[%emt 0:00:10]} Kh6 {[%emt 0:01:22]} 61. g7 {[%emt 0:00:13]} Re5 {[%emt 0:02:15]} 62. f4 {[%emt 0:00:37]} 1-0

[Event "1000GM Schev-C-A February 2024"]
[Site "Santa Clara"]
[Date "2024.02.24"]
[Round "2.4"]
[White "Rajaram, Rohan"]
[Black "Cardoso Cardoso, Jose Gabriel"]
[Result "0-1"]
[ECO "A63"]
[WhiteElo "2151"]
[BlackElo "2477"]
[Annotator "TA"]
[PlyCount "102"]
[EventDate "2024.02.13"]
[EventType "schev"]
[EventCountry "USA"]
[SourceTitle "playchess.com"]
[Source "ChessBase"]
[SourceQuality "1"]
[TimeControl "5400+30"]

{[%evp 25,102,31,18,-20,27,27,25,-24,-22,-10,-4,-47,-47,-50,-77,-71,-67,-70,-62,-41,-14,-70,-58,-83,0,0,0,0,13,-132,-129,-127,-128,-130,-104,-125,-111,-248,-163,-153,-159,-193,-148,-181,-150,-314,-210,-202,-165,-155,-158,-258,-252,-318,-336,-337,-291,-308,-294,-453,-410,-656,-406,-700,-520,-5165,-3935,-2586,-2354,-29988,-29989,-29989,-29990,-29990,-29991,-29992,-29993,-29994,-29993]} 1. d4 {[%emt 0:00:40]} Nf6 {[%emt 0:02:55]} 2. c4 {[%emt 0:00:06]} e6 {[%emt 0:00:12]} 3. g3 {[%emt 0:00:09]} c5 {[%emt 0:00:12]} 4. d5 {[%emt 0:00:29]} exd5 {[%emt 0:00:07]} 5. cxd5 {[%emt 0:00:07]} d6 {[%emt 0:00:07]} 6. Nc3 {[%emt 0:00:19]} g6 {[%emt 0:00:41]} 7. Bg2 {[%emt 0:00:15]} Bg7 {[%emt 0:00:07]} 8. Nf3 {[%emt 0:00:08]} O-O {[%emt 0:00:07]} 9. O-O {[%emt 0:00:08]} Re8 {[%emt 0:00:16]} 10. Re1 {[%emt 0:01:25]} a6 {[%emt 0:01:30]} 11. a4 {[%emt 0:01:08]} Nbd7 {[%emt 0:05:31]} 12. h3 {[%emt 0:04:00]} Rb8 {[%emt 0:00:56]} 13. Bf4 {[%emt 0:01:47]} Qc7 {[%emt 0:00:49]} 14. Rc1 {[%emt 0:04:56]} Nh5 {[%emt 0:06:03]} (14... b5 $142) 15. Bd2 $1 $11 {[%emt 0:03:40]} b5 {[%emt 0:02:02] [#]} 16. b4 $1 {[%emt 0:07:27]} Qa7 {[%emt 0:09:00]} 17. g4 {[%emt 0:06:54]} Nhf6 {[%emt 0:00:55]} 18. Rb1 {[%emt 0:11:14]} bxa4 {[%emt 0:08:50]} 19. Qxa4 {[%emt 0:03:32]} cxb4 {[%emt 0:08:59]} 20. Rxb4 {[%emt 0:00:24]} Nc5 {[%emt 0:00:09]} 21. Qa3 {[%emt 0:00:21][%cal Oc3b5]} Rxb4 {[%emt 0:05:57]} 22. Qxb4 {[%emt 0:00:07]} Bd7 {[%emt 0:03:32]} 23. Rb1 {[%emt 0:13:47]} ({White should try} 23. Be3 $11) 23... a5 $1 $36 {[%emt 0:03:11][%mdl 2048] Black has good play.} 24. Qa3 {[%emt 0:04:20]} Nfe4 {[%emt 0:06:33]} (24... a4 $17 25. Be3 h5 26. gxh5 Nxh5) 25. Nxe4 $11 {[%emt 0:01:45]} Nxe4 {[%emt 0:00:06]} 26. Be3 {[%emt 0:01:25]} Qa6 {[%emt 0:05:35]} 27. Bf1 {[%emt 0:06:23]} (27. Nd4 $11 {keeps the balance.}) 27... a4 $17 {[%emt 0:01:51]} 28. Bd4 {[%emt 0:03:14]} Bxd4 {[%emt 0:03:00]} 29. Nxd4 {[%emt 0:00:10]} Qc4 {[%emt 0:00:58][%csl LRd4,LRd5]} 30. e3 {[%emt 0:03:23]} Qxd5 {[%emt 0:00:10] Black is more active.} 31. Rc1 {[%emt 0:04:14]} (31. Bg2 $17 {was worth a try.}) 31... Nc5 {[%emt 0:02:54]} 32. Bg2 {[%emt 0:02:17]} Qe5 {[%emt 0:00:13]} 33. Rd1 {[%emt 0:00:14]} Rb8 {[%emt 0:01:33]} 34. Qc3 {[%emt 0:01:47]} Ne6 {[%emt 0:06:55]} 35. Re1 $2 {[%emt 0:02:24] Loses the game.} (35. Ne2 $17 Be8 36. Bf3) 35... Rc8 {[%emt 0:01:44]} 36. Qd2 {[%emt 0:00:31]} Qc5 {[%emt 0:00:13]} 37. Ne2 {[%emt 0:01:16]} a3 {[%emt 0:01:41] aiming for ...Rb8.} 38. Rc1 {[%emt 0:00:10]} (38. Ra1 $17) 38... Qb6 $19 {[%emt 0:00:17]} 39. Rxc8+ {[%emt 0:00:45]} Bxc8 {[%emt 0:00:04]} 40. Bd5 {[%emt 0:00:49]} Qb1+ {[%emt 0:03:52]} 41. Kh2 {[%emt 0:00:50]} Nc5 {[%emt 0:01:51]} 42. g5 {[%emt 0:05:35]} (42. Nc3 $142 Qb4 43. f3) 42... Qb2 {[%emt 0:03:22]} 43. Qa5 {[%emt 0:00:07]} (43. Qxb2 $142 axb2 44. Nc3) 43... Kg7 {[%emt 0:00:11][%cal Oc8b7] White must now prevent ...Bb7!} (43... Qxe2 44. Qd8+ Kg7 45. Qf6+ (45. Qxc8 $2 Qxf2+ 46. Kh1 Qe1+ 47. Kh2 a2 $19) 45... Kg8 46. Qxf7+ Kh8 47. Qg8#) 44. Qc7 {[%emt 0:01:37]} (44. Qc3+ $142 Kf8 45. Qd4) 44... Be6 {[%emt 0:00:43]} (44... Qxe2 45. Qxf7+ Kh8 46. Qg8#) 45. Qxd6 {[%emt 0:01:09]} (45. Bxe6 $142 Nxe6 (45... Qxe2 46. Qxf7+ Kh8 47. Qg8#) 46. Qc3+ Qxc3 47. Nxc3) 45... Bxd5 {[%emt 0:00:26]} (45... Qxe2 46. Qe5+ Kf8 47. Qd6+ Ke8 48. Qc6+ Bd7 49. Bxf7+ Kxf7 50. Qf6+ Kg8 51. Qd8+ Kf7 52. Qf6+ Ke8 (52... Kg8 53. Qd8+ Kg7 54. Qe7+ Kg8 55. Qd8+ $11) 53. Qh8+ Kf7 54. Qf6+ $11) 46. Qxd5 {[%emt 0:01:01][%mdl 4096] Endgame. KQN-KQN} a2 {[%emt 0:00:17]} (46... Qxe2 47. Qe5+ Kf8 (47... Kg8 48. Qb8+ Kg7 49. Qe5+ f6 50. Qe7+ Kg8 51. Qe8+ Kg7 52. Qe7+ Kg8 53. Qe8+ Kg7 54. Qe7+ $11) 48. Qxc5+ Kg8 49. Qc8+ Kg7 50. Qc3+ Kg8 51. Qc8+ Kg7 52. Qc3+ Kg8 53. Qc8+ $11) 47. Nd4 {[%emt 0:00:19]} Qxf2+ {[%emt 0:00:07] Black mates.} ({Inferior is} 47... a1=B 48. Qe5+ Kg8 49. Qe8+ Kg7 50. Qe5+ Kg8 51. Qe8+ Kg7 52. Qe5+ $11) 48. Qg2 {[%emt 0:00:07]} Qxg2+ {[%emt 0:00:05]} ({Not} 48... a1=Q 49. Qxf2 Ne4 50. Qc2 $15) 49. Kxg2 {[%emt 0:00:04]} a1=Q {[%emt 0:00:05]} 50. Nf3 {[%emt 0:00:05]} Ne4 {[%emt 0:00:05]} 51. h4 {[%emt 0:00:06]} Qb2+ {[%emt 0:00:05] Weighted Error Value: White=0.79/Black=0.36.  Loses game:     	White=1     	---        Mistake:       	White=9     	Black=2      Inaccurate:     	White=1     	Black=4      OK:         	White=5     	Black=10     Best:        	White=2     	Black=2      Strong:       	White=1     	Black=1} 0-1